Cogmind - Beta 9.6 @@@ ROGUE MODE // 2020.09.06 @ 18:19:32 Player: Hilbert Result: Destroyed by Y-45 Defender with Heavy Assault Rifle Performance ------------- Evolutions (1) 500 Regions Visited (3) 600 Robots Destroyed (42) 210 Value Destroyed (1139) 1139 Prototype IDs (0) 0 Alien Tech Used (0) 0 Bonus (141) 141 TOTAL SCORE: 2590 Bonus ------- High Alert Combat Kills 8 Follower Combat Kills 133 Cogmind --------- Core Integrity 0/400 Matter 252/300 Energy 99/100 System Corruption 2% Temperature Cool (9) Movement Core (50) Location -9/Storage Parts ------- > --- POWER (1) -------- (None) > --- PROPULSION (3) --- (None) > --- UTILITY (3) ------ (None) > --- WEAPON (2) ------- (None) > --- INVENTORY (4) ---- Improved Heat Sink Large Storage Unit Structural Scanner Small Laser Peak State ------------ > --- POWER ------------ (None) > --- PROPULSION ------- Light Treads Light Treads Compact Wheel > --- UTILITY ---------- Large Storage Unit Large Storage Unit Weight Redist. System > --- WEAPON ----------- Autogun > --- INVENTORY -------- Improved Heat Sink Structural Scanner Small Laser Small Laser [Rating: 9] Favorites ----------- Power Ion Engine Engine Ion Engine Propulsion Light Treads Treads Light Treads Wheel Wheel Utility Large Storage Unit Device Weight Redist. System Storage Large Storage Unit Weapon Assault Rifle Energy Gun Small Laser Ballistic Gun Assault Rifle Launcher Mini Grenade Launcher Build | -11 -10 -9 -9 ------- Run | Scr Mat Mat Sto Slots Evolved 2 | . . 2 . Power . | . . . . Propulsion 1 | . . 1 . Utility 1 | . . 1 . Weapon . | . . . . Parts Attached 28 | 6 8 10 4 Power 2 | 1 1 . . Engine 2 | 1 1 . . Core . | . . . . Reactor . | . . . . Propulsion 9 | 2 2 4 1 Treads 5 | 1 1 2 1 Leg . | . . . . Wheel 4 | 1 1 2 . Hover . | . . . . Flight . | . . . . Utility 6 | 1 2 1 2 Device 2 | . . 1 1 Storage 4 | 1 2 . 1 Processor . | . . . . Hackware . | . . . . Protection . | . . . . Artifact . | . . . . Weapon 11 | 2 3 5 1 Energy Gun 4 | 1 2 1 . Energy Cannon . | . . . . Ballistic Gun 3 | 1 . 2 . Ballistic Cannon . | . . . . Launcher 4 | . 1 2 1 Special Weapon . | . . . . Impact Weapon . | . . . . Slashing Weapon . | . . . . Piercing Weapon . | . . . . Special Melee Weapon . | . . . . Unidentified Prototypes . | . . . . Parts Lost 14 | . 7 4 3 Power 2 | . 2 . . Propulsion 6 | . 1 3 2 Utility . | . . . . Weapon 6 | . 4 1 1 Highest Loss Streak 4 | . 4 3 2 Average Slot Usage (%) 75 | . 90 62 64 Engine 5 | . 11 . . Treads 14 | . 13 11 18 Wheel 11 | . 14 11 6 Device 3 | . . 3 10 Storage 23 | . 26 22 20 Energy Gun 5 | . 10 3 . Ballistic Gun 8 | . 12 9 3 Launcher 2 | . 1 1 5 Naked Turns 24 | . . . 24 Heaviest Build 41 | 13 41 36 35 Greatest Support 46 | 10 20 22 46 Greatest Overweight (x) 11 | 1 4 11 3 Average Overweight (x) 1 | . 2 1 . Largest Inventory Capacity 16 | 6 16 16 16 Average Capacity 14 | 5 14 16 15 Most Carried 8 | 4 8 5 6 Average Carried 5 | 2 6 4 5 Final Capacity 16 | 6 16 16 4 Final Carried 6 | 4 6 4 4 Class Distribution -------------------- 96% | Mutant 3% | Commander-Mutant Dominant Class ---------------- Mutant | -10/Materials Mutant | -9/Materials Mutant | -9/Storage Resources | -11 -10 -9 -9 ----------- Run | Scr Mat Mat Sto Matter Collected 902 | 252 230 305 115 Remotely . | . . . . Salvage Created 1329 | . 694 387 248 Parts 88 | . 48 21 19 Haulers Intercepted 1 | . . 1 . Recyclers Shooed 5 | . 2 3 . Parts Field Recycled . | . . . . Retrieved Matter . | . . . . Parts Self-Destructed . | . . . . Prevented . | . . . . Kills | -11 -10 -9 -9 ------- Run | Scr Mat Mat Sto Combat Hostiles Destroyed 31 | . 15 8 8 Guns 15 | . 13 2 . AOE 16 | . 2 6 8 Classes Destroyed 11 | . 6 3 2 Worker 3 | . 2 . 1 Builder 2 | . 1 . 1 Hauler 1 | . . 1 . Recycler 3 | . 1 2 . Operator 1 | . . . 1 Watcher 1 | . 1 . . Swarmer 5 | . 3 2 . Grunt 17 | . 12 2 3 Brawler 1 | . . . 1 Duelist 2 | . . 1 1 Sentry 6 | . . 3 3 Best Kill Streak 8 | . 3 8 6 Combat Bots Only 5 | . 3 5 5 Max Kills in Single Turn 2 | . 1 2 2 Gunslinging . | . . . . Exploded 2 | . 1 2 2 Melee . | . . . . Uniques/NPCs Destroyed . | . . . . Combat | -11 -10 -9 -9 -------- Run | Scr Mat Mat Sto Damage Taken 1937 | . 684 535 718 Core 434 | . 29 148 257 Absorbed by Shields . | . . . . Core Remaining (%) 94 | 100 88 . . Volleys Fired 108 | . 61 35 12 Largest 2 | . 2 2 1 Hottest 80 | . 80 70 30 Shots Fired 161 | . 105 44 12 Gun 138 | . 103 35 . Cannon . | . . . . Launcher 23 | . 2 9 12 Special . | . . . . Kinetic 83 | . 50 33 . Thermal 27 | . 25 2 . Explosive 23 | . 2 9 12 Electromagnetic 28 | . 28 . . Robot Hit Streak 13 | . 8 8 13 Robot Miss Streak 3 | . 3 2 . Penetration Max . | . . . . Secondary Targets 1 | . 1 . . Max Gunslinging Chain 1 | . 1 . . Shots Hit Robots 109 | . 67 30 12 Core Hits 68 | . 33 17 18 Critical Hits . | . . . . Critical Kills . | . . . . Critical Parts Destroyed . | . . . . Melee Attacks . | . . . . Impact . | . . . . Slashing . | . . . . Piercing . | . . . . Sneak Attacks . | . . . . Combat Hostiles . | . . . . Follow-up Attacks . | . . . . Damage Inflicted 2645 | . 969 933 743 Guns 1139 | . 763 376 . Cannons . | . . . . Explosions 1501 | . 206 557 738 Melee . | . . . . Ramming 5 | . . . 5 Kinetic 688 | . 334 354 . Thermal 351 | . 329 22 . Explosive 1357 | . 62 557 738 Electromagnetic 244 | . 244 . . Impact . | . . . . Slashing . | . . . . Piercing . | . . . . Highest Corruption 5 | . 5 . 2 Average Corruption 4 | . 4 . 2 Corruption Purged . | . . . . Effects 11 | . 11 . . Message Errors 2 | . 2 . . Matter Fused 4 | . 4 . . Heat Flow Errors 1 | . 1 . . Energy Discharges 1 | . 1 . . Data Loss (minor) 1 | . 1 . . Targeting Errors 1 | . 1 . . Weapon Failures 1 | . 1 . . Overload Shots . | . . . . Overflow Damage 43 | . 31 8 4 Projectiles . | . . . . Explosions 43 | . 31 8 4 Melee . | . . . . Knockbacks . | . . . . Impact . | . . . . Kinetic . | . . . . Secondary . | . . . . Self-Inflicted Damage 402 | . 140 147 115 Shots 13 | . 4 6 3 Rammed 1 | . . . 1 Targets Rammed 1 | . . . 1 Kicked . | . . . . Crushed . | . . . . Highest Temperature 427 | . 427 11 . Average Temperature 73 | . 78 6 . Received Heat Transfer 639 | . 279 96 264 Effects 2 | . 2 . . Shutdowns 1 | . 1 . . Energy Bleed 1 | . 1 . . Siege Activations . | . . . . Robots Corrupted . | . . . . Combat Hostiles . | . . . . Parts Fried . | . . . . Impact Corruptions . | . . . . Robots Melted . | . . . . Combat Hostiles . | . . . . Parts Melted 1 | . 1 . . Heat Transferred 675 | . 625 50 . Parts Sabotaged . | . . . . Parts Stolen . | . . . . Parts Stripped . | . . . . Power Chain Reactions 3 | . 3 . . Missiles Intercepted . | . . . . Alert | -11 -10 -9 -9 ------- Run | Scr Mat Mat Sto Peak Influence 392 | . 392 340 341 Average Influence 222 | . 237 241 217 Maximum Alert Level 2 | . 2 1 1 Low Security (%) 38 | 100 23 34 55 Level 1 61 | . 76 65 44 Level 2 . | . . . . Level 3 . | . . . . Level 4 . | . . . . Level 5 . | . . . . High Security . | . . . . Max Security . | . . . . Squads Dispatched 12 | . 6 . 6 Investigation 2 | . 1 . 1 Extermination . | . . . . Reinforcement 9 | . 5 . 4 Assault . | . . . . Garrison 1 | . . . 1 Intercept . | . . . . Construction Impeded . | . . . . Haulers Reinforced . | . . . . Stealth | -11 -10 -9 -9 --------- Run | Scr Mat Mat Sto Distress Signals 4 | . 4 . . Communications Jammed . | . . . . Distress Signals . | . . . . Times Spotted 71 | . 31 14 26 Peak Tracking Total 8 | . 5 6 8 Tactical Retreats 8 | . 3 3 2 Traps | -11 -10 -9 -9 ------- Run | Scr Mat Mat Sto Traps Triggered 6 | . 3 . 3 Indirectly . | . . . . Trap Hack Attempts . | . . . . Triggered . | . . . . Disarmed . | . . . . Reprogrammed . | . . . . Reused . | . . . . Traps Extracted . | . . . . Installed . | . . . . Triggered . | . . . . Machines | -11 -10 -9 -9 ---------- Run | Scr Mat Mat Sto Machines Disabled 2 | . 1 1 . Max in Single Turn 1 | . 1 1 . Machines Sabotaged . | . . . . Garrisons Compromised . | . . . . Overloaded Fab Kills . | . . . . Fab Network Shutdowns . | . . . . Hacking | -11 -10 -9 -9 --------- Run | Scr Mat Mat Sto Machines Accessed 11 | . 2 2 7 Terminals 11 | . 2 2 7 Fabricators . | . . . . Repair Stations . | . . . . Recycling Units . | . . . . Scanalyzers . | . . . . Garrison Access . | . . . . Total Hacks 30 | . 9 7 14 Successful 15 | . 3 4 8 Failed 15 | . 6 3 6 Catastrophic 1 | . . . 1 Database Lockouts . | . . . . Manual 27 | . 9 7 11 Terminals 30 | . 9 7 14 Fabricators . | . . . . Repair Stations . | . . . . Recycling Units . | . . . . Scanalyzers . | . . . . Garrison Access . | . . . . Terminal Hacks 5 | . 1 1 3 Record 1 | . . . 1 Open Door 2 | . . . 2 Unreport Threat 1 | . 1 . . Locate Traps 1 | . . 1 . Fabricator Hacks . | . . . . Repair Station Hacks . | . . . . Recycling Unit Hacks . | . . . . Scanalyzer . | . . . . Garrison Access Hacks . | . . . . Unauthorized Hacks 10 | . 2 3 5 Terminals 10 | . 2 3 5 Track 3 | . . 1 2 Botnet 7 | . 2 2 3 Fabricators . | . . . . Repair Stations . | . . . . Recycling Units . | . . . . Scanalyzers . | . . . . Garrison Access . | . . . . Data Cores Recovered . | . . . . Used . | . . . . Hacking Detections 6 | . 1 1 4 Full Trace Events 3 | . 1 . 2 Feedback Events . | . . . . Feedback Blocked . | . . . . Robot Schematics Acquired . | . . . . Robots Built . | . . . . Matter . | . . . . Time . | . . . . Total Robot Build Rating . | . . . . Part Schematics Acquired . | . . . . Parts Built . | . . . . Matter . | . . . . Time . | . . . . Total Part Build Rating . | . . . . Parts Repaired . | . . . . Time . | . . . . Parts Recycled . | . . . . Recycled Matter . | . . . . Retrieved Matter . | . . . . Retrieved Components . | . . . . Parts Scanalyzed . | . . . . Part Schematics Acquired . | . . . . Parts Damaged . | . . . . Bothacking | -11 -10 -9 -9 ------------ Run | Scr Mat Mat Sto Used RIF Installer . | . . . . Robots Hacked . | . . . . Non-combat . | . . . . Combat . | . . . . Robot Hacks Applied . | . . . . Relay Couplers Released . | . . . . Robots Rewired . | . . . . Allies Hacked . | . . . . Hacks Repelled . | . . . . Allies | -11 -10 -9 -9 -------- Run | Scr Mat Mat Sto Total Allies 10 | . . . 10 Largest Group 9 | . . . 9 Highest-Rated Group 80 | . . . 80 Highest-Rated Ally 16 | . . . 16 Total Orders . | . . . . Ally Attacks 43 | . . . 43 Total Damage 457 | . . . 457 Kills 5 | . . . 5 Allies Corrupted . | . . . . Allies Melted . | . . . . Intel | -11 -10 -9 -9 ------- Run | Scr Mat Mat Sto Robot Analysis Total . | . . . . Derelict Logs Recovered . | . . . . Drone Launches 2 | . . . 2 Drone Recoveries . | . . . . Exploration | -11 -10 -9 -9 ------------- Run | Scr Mat Mat Sto Turns Passed 1583 | 67 697 346 473 Spaces Moved 1004 | 62 394 234 314 Core 82 | 4 . 1 77 Treads 76 | . 45 1 30 Legs . | . . . . Wheels 846 | 58 349 232 207 Hover . | . . . . Flight . | . . . . Fastest Speed 50 | 50 90 90 50 Average Speed 112 | 83 115 110 116 Slowest Speed 600 | 90 180 600 200 Overloaded Moves . | . . . . Propulsion Burnouts . | . . . . Robots Hopped . | . . . . Cave-ins Triggered . | . . . . Exploration Rate (%) 36 | 3 70 15 56 Regions Visited 3 Branch Regions 1 Pre-discovered Areas . | . . . . Known Exits Taken . | . . . . Unknown Exits Taken 3 | 1 1 1 . Scrap Searched . | . . . . Spaces Dug . | . . . . Terrain Destroyed 156 | . 16 57 83 Melee . | . . . . Projectile . | . . . . AOE 156 | . 16 57 83 Actions | -11 -10 -9 -9 --------- Run | Scr Mat Mat Sto Total 1293 | 73 528 282 410 Wait 128 | 2 61 . 65 Move 1001 | 61 393 233 314 Hop . | . . . . Pick Up 13 | 4 5 1 3 Fast Attach 13 | 6 1 4 2 Attach 11 | . 5 4 2 Detach 3 | . . 2 1 Swap 4 | . 2 2 . Drop 3 | . . 1 2 Fire 108 | . 61 35 12 Melee . | . . . . Ram 1 | . . . 1 Kick . | . . . . Crush . | . . . . Escape Stasis 8 | . . . 8 Rewire . | . . . . Trap . | . . . . Miscellaneous . | . . . . Route ------- -11/Scrapyard -10/Materials -9/Materials -9/Storage History --------- Turn | Location | Event 20 | -11/Scrapyard | Discovered new exit (range 16) 68 | -11/Scrapyard | Entered Materials 300 | -10/Materials | Build established: Mutant 716 | -10/Materials | Discovered new exit (range 9) 724 | -10/Materials | Lost 4 parts (1p3w) 765 | -10/Materials | Entered another Materials area 765 | -9/Materials | Evolved 2 slots: Propulsion x1, Utility x1 870 | -9/Materials | Discovered new exit (range 7) 928 | -9/Materials | Lost 3 parts (2n1w) 1111 | -9/Materials | Entered Storage 1442 | -9/Storage | Assisted by bots powering up and referring to "LRC-V3" 1513 | -9/Storage | Garrison activated, responded to threat 1542 | -9/Storage | Core integrity fell below 50% 1555 | -9/Storage | Released all parts (6) 1565 | -9/Storage | Core integrity fell below 20% 1584 | -9/Storage | Destroyed by Y-45 Defender with Heavy Assault Rifle Last Messages --------------- 01567_ Triggered Shock Trap. 01567_ The floor emits a surge of raw power. 01567_ System corrupted (+2). 01572_ Connecting with Terminal... >>Trojan(Botnet) Trojan loaded successfully. Testing... Terminal linked with 2 systems. Awaiting botnet instructions. >>Trojan(Track) Trojan loaded successfully. Testing... Tracking enabled and active. 01577_ Connecting with Terminal... >>Open Sealed Heavy Doors opened. 01578_ Acquired Drone Bay. 01579_ Drone released from Drone Bay. 01581_ Dropped Drone Bay. 01583_ Slammed into Y-45 Defender. Map ----- +----------------------------------------------------+ | | | | | | | ???????????????????????????????????? | | ???????????????????????????????????? | | ???????????????????????????????????? | | ???????????????????????????????????? | | ???????????????????????????????????? | | ???????????????????????????????????? | | ???????????????????????????????????? | | ???????????????????????????????????? | | ???????????????????????????????????? | | ???????????????????????????????????? | | ???????????????????????????????????? | | ???????????????????????????????????? | | ???????????????????????????????????? | | ???????????????????????""""????????? | | ??????????????????????## #????????? | | ??????????????????????#T #????????? | | ????????????##+????????# #????????? | | ????????????# ????????# #????????? | | ????????????# ????????# #????????? | | ????????????# ???????# ###??????? | | ????????????# o ???????# #T######?? | | ????????????+ ???????# # #!!!!#?? | | ????????????# ???????# @# n #?? | | ????????????# ???????+ Yl #n!!!#?? | | ????????????# #??????# ########?? | | ????????????# #?????##g^##???????? | | ?????????#??#a ####### #???????? | | ??????### #?# #???????? | | ????? ## g +???????? | | ??#??"" ## ###### #???????? | | ??# "R ## #????## ###???????? | | ### """ ## #?????#Y#?????????? | | "" ## #?????# #?????????? | | ?G !!! ## #?????# #?????????? | | ?"" !!| ## #?????# #?????????? | | ??# !!| ## #?????#+#?????????? | | ??# ## #?????? ??????????? | | #### # ![= #?????????????????? | | # * !]= #?????????????????? | | # =%= ! #?????????????????? | | T# *= % #?????????????????? | | # =! #?????????????????? | | ## =* ####?????????????????? | | %%%% % #????????????????????? | | ## ## # #????????????????????? | | # #% % #?###+#????????????????????? | | ####= / ???????????????????????? | +----------------------------------------------------+ Best States ------------- Heat Dissipation 28 Energy Generation 10 Energy Capacity 250 Matter Stores 300 Matter Capacity 300 Sight Range 16 Terrain Scan Density 10 Additional Mass Support 6 Evasion (%) 50 Recoil Reduction 2 Item Schematics ----------------- None Robot Schematics ------------------ None Fabricated ------------ Nothing Alien Tech Used ----------------- None Achievements -------------- Hey, That's Mine! Challenges ------------ None Game ------ Seed RefineryAntigravAirjet Manual? 0 Play Time 00:19:13 Cumulative 26.3 hours Start 2020.09.06 @ 18:01:28 End 2020.09.06 @ 18:19:32 Sessions 1 Manual Loads 0 Difficulty Rogue Special Mode None Game No. 58 Rogue 58 Adventurer 0 Explorer 0 Win Type - Total 0 Types 0/0/0/0/0/0/0 Lore% 29 Gallery% 33 Achievement% 26 Wizard Run 0 Options --------- ASCII 0 Keyboard 1 Movement Vi Keybinds 0 Fullscreen 1 Font 18/SmallcapsGlow Map View 76x50 Tactical HUD 1 Map Filters NONE Filters NONE Steam 1 RUN: aaa7b111-e0a3-45d0-8cc0-0333404f6b56